fUSD/lending_fUSD_20241104
["ID","MTS","AMOUNT","RATE_DAILY","PERIOD"]
[341249317,1730725900491,-585.94339511,0.00037534,2]
[341249318,1730725900501,-500.0,0.00037534,2]
[341249319,1730725900511,-500.0,0.00037534,2]
[341249320,1730725900521,-201.85817713,0.00037534,2]
[341249321,1730725900531,-500.0,0.00037534,2]
[341249322,1730725900541,-500.0,0.00037534,2]
[341249323,1730725900552,-500.0,0.00037534,2]
[341249324,1730725900691,-500.0,0.00037534,2]
[341249325,1730725900718,-610.42535307,0.00037534,2]
[341249326,1730725900729,-601.59,0.00037534,2]
[341249327,1730725900738,-500.0,0.00037534,2]
[341249328,1730725900747,-500.0,0.00037534,2]
[341249329,1730725900761,-500.0,0.00037534,2]
[341249330,1730725900772,-500.0,0.00037534,2]
[341249331,1730725900781,-500.0,0.00037534,2]
[341249332,1730725900792,-500.0,0.00037534,2]
[341249333,1730725900803,-500.0,0.00037534,2]
[341249334,1730725900813,-541.85678093,0.00037534,2]
[341249335,1730725900822,-500.0,0.00037534,2]
[341249336,1730725900833,-500.0,0.00037534,2]
[341249337,1730725900843,-1995.05,0.00037534,2]
[341249338,1730725900857,-1008.77,0.00037534,2]
[341249339,1730725900867,-500.0,0.00037534,2]
[341249340,1730725900876,-500.0,0.00037534,2]
[341249341,1730725900886,-623.02,0.00037534,2]
[341249342,1730725900896,-200.0,0.00037534,2]
[341249343,1730725900905,-500.0,0.00037534,2]
[341249344,1730725900915,-500.0,0.00037534,2]
[341249345,1730725900924,-500.0,0.00037534,2]
[341249346,1730725900935,-500.0,0.00037534,2]
[341249347,1730725900944,-500.0,0.00037534,2]
[341249348,1730725900954,-500.0,0.00037534,2]
[341249349,1730725900963,-500.0,0.00037534,2]
[341249350,1730725900973,-500.0,0.00037534,2]
[341249351,1730725900983,-500.0,0.00037534,2]
[341249352,1730725900992,-157.18,0.00037534,2]
[341249353,1730725901003,-500.0,0.00037534,2]
[341249354,1730725901013,-1000.0,0.00037534,89]
[341249355,1730725901022,-500.0,0.00037534,2]
[341249356,1730725901033,-500.0,0.00037534,2]
[341249357,1730725901043,-1165.65,0.00037534,2]
[341249358,1730725901053,-500.0,0.00037534,2]
[341249359,1730725901062,-615.17108454,0.00037534,2]
[341249360,1730725901072,-500.0,0.00037534,2]
[341249361,1730725901082,-500.0,0.00037534,2]
[341249362,1730725901091,-367.65989542,0.00037534,2]
[341249363,1730725901103,-512.83,0.00037534,2]
[341249364,1730725901113,-500.0,0.00037534,2]
[341249365,1730725901122,-500.0,0.00037534,2]
[341249366,1730725901132,-1331.81,0.00037534,2]
[341249367,1730725901142,-632.80817886,0.00037534,2]
[341249368,1730725901151,-972.11,0.00037534,2]
[341249369,1730725901161,-500.0,0.00037534,2]
[341249370,1730725901172,-500.0,0.00037534,2]
[341249371,1730725901182,-500.0,0.00037534,2]
[341249372,1730725901192,-500.0,0.00037534,2]
[341249373,1730725901202,-500.0,0.00037534,2]
[341249374,1730725901214,-500.0,0.00037534,2]
[341249375,1730725901224,-500.0,0.00037534,2]
[341249376,1730725901234,-500.0,0.00037534,2]
[341249377,1730725901243,-1002.08,0.00037534,2]
[341249378,1730725901253,-624.74586685,0.00037534,2]
[341249379,1730725901263,-500.0,0.00037534,2]
[341249380,1730725901273,-500.0,0.00037534,2]
[341249381,1730725901282,-500.0,0.00037534,2]
[341249382,1730725901292,-500.0,0.00037534,2]
[341249383,1730725901302,-330.93001103,0.00037534,2]
[341249384,1730725901312,-596.66834697,0.00037534,2]
[341249385,1730725901321,-500.0,0.00037534,2]
[341249386,1730725901331,-500.0,0.00037534,2]
[341249387,1730725901341,-500.0,0.00037534,2]
[341249388,1730725901354,-1341.72,0.00037534,2]
[341249389,1730725901363,-209.77170649,0.00037534,2]
[341249390,1730725901372,-528.80280538,0.00037534,2]
[341249391,1730725901382,-500.0,0.00037534,2]
[341249392,1730725901392,-1042.98,0.00037534,2]
[341249393,1730725901402,-500.0,0.00037534,2]
[341249394,1730725901411,-500.0,0.00037534,2]
[341249395,1730725901421,-1342.69,0.00037534,2]
[341249396,1730725901431,-7421.53,0.00037534,2]
[341249397,1730725901440,-500.0,0.00037534,2]
[341249398,1730725901450,-3370.41,0.00037534,2]
[341249399,1730725901459,-500.0,0.00037534,2]
[341249400,1730725901470,-624.26,0.00037534,2]
[341249401,1730725901480,-707.91,0.00037534,2]
[341249402,1730725901489,-10707.45,0.00037534,2]
[341249403,1730725901499,-500.0,0.00037534,2]
[341249404,1730725901508,-500.0,0.00037534,2]
[341249405,1730725901518,-500.0,0.00037534,2]
[341249406,1730725901528,-500.0,0.00037534,2]
[341249407,1730725901538,-831.55,0.00037534,2]
[341249408,1730725901548,-500.0,0.00037534,2]
[341249409,1730725901558,-1217.0,0.00037534,2]
[341249410,1730725901567,-2695.19,0.00037534,2]
[341249411,1730725901578,-500.0,0.00037534,2]
[341249412,1730725901588,-500.0,0.00037534,2]
[341249413,1730725901597,-500.0,0.00037534,2]
[341249414,1730725901606,-575.84,0.00037534,2]
[341249415,1730725901616,-3535.86,0.00037534,2]
[341249416,1730725901626,-646.31,0.00037534,2]
[341249417,1730725901636,-540.81,0.00037534,2]
[341249418,1730725901646,-830.33,0.00037534,2]
[341249419,1730725901655,-500.0,0.00037534,2]
[341249420,1730725901664,-500.0,0.00037534,2]
[341249421,1730725901674,-845.84,0.00037534,2]
[341249422,1730725901683,-2000.0,0.00037534,2]
[341249423,1730725901693,-918.13,0.00037534,2]
[341249424,1730725901703,-500.0,0.00037534,2]
[341249425,1730725901713,-1204.33,0.00037534,2]
[341249426,1730725901723,-500.0,0.00037534,2]
[341249427,1730725901733,-749.48,0.00037534,2]
[341249428,1730725901742,-500.0,0.00037534,2]
[341249429,1730725901752,-1387.35,0.00037534,2]
[341249430,1730725901766,-1564.21,0.00037534,2]
[341249431,1730725901776,-806.53,0.00037534,2]
[341249432,1730725901786,-500.0,0.00037534,2]
[341249433,1730725901796,-5168.13,0.00037534,2]
[341249434,1730725901807,-10163.36,0.00037534,2]
[341249435,1730725901816,-500.0,0.00037534,2]
[341249436,1730725901826,-2866.16,0.00037534,2]
[341249437,1730725901837,-691.73,0.00037534,2]
[341249438,1730725901848,-1019.92,0.00037534,2]
[341249439,1730725901857,-500.0,0.00037534,2]
[341249440,1730725901867,-5461.87,0.00037534,2]
[341249441,1730725901876,-500.0,0.00037534,2]
[341249442,1730725901885,-500.0,0.00037534,2]
[341249443,1730725901895,-10956.67,0.00037534,2]
[341249444,1730725901904,-1965.9,0.00037534,2]
[341249445,1730725901914,-500.0,0.00037534,2]
[341249446,1730725901923,-1761.84,0.00037534,2]
[341249447,1730725901933,-1595.14,0.00037534,2]
[341249448,1730725901943,-500.0,0.00037534,2]
[341249449,1730725901953,-568.68,0.00037534,2]
[341249450,1730725901962,-500.0,0.00037534,2]
[341249451,1730725901972,-500.0,0.00037534,2]
[341249452,1730725901982,-445.16281799,0.00037534,2]
[341249453,1730725901991,-500.0,0.00037534,2]
[341249454,1730725902001,-10530.0,0.00037534,2]
[341249455,1730725902011,-500.0,0.00037534,2]
[341249456,1730725902021,-1163.57,0.00037534,2]
[341249457,1730725902031,-1268.02,0.00037534,2]
[341249458,1730725902040,-500.0,0.00037534,2]
[341249459,1730725902050,-529.02,0.00037534,2]
[341249460,1730725902060,-1038.33,0.00037534,2]
[341249461,1730725902069,-500.0,0.00037534,2]
[341249462,1730725902079,-2034.7,0.00037534,2]
[341249463,1730725902088,-500.0,0.00037534,2]
[341249464,1730725902100,-755.3,0.00037534,2]
[341249465,1730725902110,-1475.39,0.00037534,2]
[341249466,1730725902119,-500.0,0.00037534,2]
[341249467,1730725902129,-207.98014617,0.00037534,2]
[341249468,1730725902139,-500.0,0.00037534,2]
[341249469,1730725902148,-901.25,0.00037534,2]
[341249470,1730725902159,-4571.88,0.00037534,2]
[341249471,1730725902168,-500.0,0.00037534,2]
[341249472,1730725902177,-5855.7,0.00037534,2]
[341249473,1730725902187,-1827.95,0.00037534,2]
[341249474,1730725902196,-780.78,0.00037534,2]
[341249475,1730725902206,-500.0,0.00037534,2]
[341249476,1730725902216,-541.5,0.00037534,2]
[341249477,1730725902225,-500.0,0.00037534,2]
[341249478,1730725902234,-500.0,0.00037534,2]
[341249479,1730725902244,-206.01727998,0.00037534,2]
[341249480,1730725902253,-500.0,0.00037534,2]
[341249481,1730725902265,-500.0,0.00037534,2]
[341249482,1730725902274,-170.70541143,0.00037534,2]
[341249483,1730725902284,-1576.72,0.00037534,2]
[341249484,1730725902293,-332.34941353,0.00037534,2]
[341249485,1730725902303,-542.2599665,0.00037534,2]
[341249486,1730725902312,-500.0,0.00037534,2]
[341249487,1730725902321,-976.95,0.00037534,2]
[341249488,1730725902330,-500.0,0.00037534,2]
[341249489,1730725902339,-3971.77,0.00037534,2]
[341249490,1730725902350,-500.0,0.00037534,2]
[341249491,1730725902359,-500.0,0.00037534,2]
[341249492,1730725902369,-500.0,0.00037534,2]
[341249493,1730725902378,-500.0,0.00037534,2]
[341249494,1730725902388,-500.0,0.00037534,2]
[341249495,1730725902397,-160.5396056,0.00037534,2]
[341249496,1730725902408,-4142.22986342,0.0003759,2]
[341249497,1730725902417,-1006.53,0.00037601,2]
[341249498,1730725902426,-161.99,0.00037666,120]
[341249499,1730725902436,-1000.0,0.00037666,2]
[341249500,1730725902446,-181.93,0.00037666,2]
[341249501,1730725902456,-8814.37,0.00037666,2]
[341249502,1730725902465,-4515.86,0.00037671,120]
[341249503,1730725902475,-1005.5,0.000377,30]
[341249504,1730725902484,-200.0,0.000378,13]
[341249505,1730725902494,-2284.83,0.00037807,2]
[341249506,1730725902503,-2284.83,0.00037807,2]
[341249507,1730725902513,-2284.83,0.00037807,2]
[341249508,1730725902523,-2284.83,0.00037807,2]
[341249509,1730725902532,-2284.98938399,0.00037807,2]
[341249510,1730725902541,-662.72,0.00037807,2]
[341249511,1730725902551,-662.72,0.00037807,2]
[341249512,1730725902560,-662.72,0.00037807,2]
[341249513,1730725902570,-662.72,0.00037807,2]
[341249514,1730725902579,-662.84129304,0.00037807,2]
[341249515,1730725902589,-714.00054191,0.00037808,2]
[341249516,1730725902601,-500.0,0.00037808,2]
[341249517,1730725902610,-500.0,0.00037808,2]
[341249518,1730725902619,-580.29,0.00037808,2]
[341249519,1730725902628,-500.0,0.00037808,2]
[341249520,1730725902638,-343.52023014,0.00037808,2]
[341249521,1730725902647,-244.21517155,0.00037808,2]
[341249522,1730725902657,-500.0,0.00037808,2]
[341249523,1730725902666,-1598.15,0.00037808,2]
[341249524,1730725902677,-956.54,0.00037808,7]
[341249525,1730725902686,-570.89,0.00037808,2]
[341249526,1730725902695,-1552.92,0.00037808,2]
[341249527,1730725902704,-500.0,0.00037808,2]
[341249528,1730725902714,-767.02,0.00037808,2]
[341249529,1730725902723,-500.0,0.00037808,2]
[341249530,1730725902732,-500.0,0.00037808,2]
[341249531,1730725902742,-194.51770344,0.00037808,2]
[341249532,1730725902753,-500.0,0.00037808,2]
[341249533,1730725902768,-625.89077627,0.00037808,2]
[341249534,1730725902778,-530.64,0.00037808,2]
[341249535,1730725902787,-500.0,0.00037808,2]
[341249536,1730725902799,-409.68706867,0.00037808,2]
[341249537,1730725902808,-500.0,0.00037808,2]
[341249538,1730725902818,-500.0,0.00037808,2]
[341249539,1730725902827,-500.0,0.00037808,2]
[341249540,1730725902839,-1163.84,0.00037808,2]
[341249541,1730725902848,-500.0,0.00037808,2]
[341249542,1730725902910,-500.0,0.00037808,2]
[341249543,1730725902921,-500.0,0.00037808,2]
[341249544,1730725902932,-500.0,0.00037808,2]
[341249545,1730725902941,-500.0,0.00037808,2]
[341249546,1730725902950,-614.39,0.00037808,2]
[341249547,1730725902959,-641.85,0.00037808,2]
[341249548,1730725902969,-500.0,0.00037808,2]
[341249549,1730725902979,-500.0,0.00037808,2]
[341249550,1730725902988,-500.0,0.00037808,2]
[341249551,1730725902998,-750.25,0.00037808,2]
[341249552,1730725903007,-500.0,0.00037808,2]
[341249553,1730725903017,-1037.16,0.00037808,2]
[341249554,1730725903027,-500.0,0.00037808,2]
[341249555,1730725903037,-538.4,0.00037808,2]
[341249556,1730725903046,-341.36707546,0.00037808,2]
[341249557,1730725903056,-500.0,0.00037808,2]
[341249558,1730725903065,-500.0,0.00037808,2]
[341249559,1730725903075,-927.41,0.00037808,2]
[341249560,1730725903085,-500.0,0.00037808,2]
[341249561,1730725903094,-607.03,0.00037808,2]
[341249562,1730725903104,-500.0,0.00037808,2]
[341249563,1730725903114,-533.44219571,0.00037808,2]
[341249564,1730725903124,-529.98876036,0.00037808,2]
[341249565,1730725903133,-500.0,0.00037808,2]
[341249566,1730725903142,-527.13,0.00037808,2]
[341249567,1730725903152,-500.0,0.00037808,2]
[341249568,1730725903162,-500.0,0.00037808,2]
[341249569,1730725903171,-500.0,0.00037808,2]
[341249570,1730725903181,-500.0,0.00037808,2]
[341249571,1730725903190,-500.0,0.00037808,2]
[341249572,1730725903200,-500.0,0.00037808,2]
[341249573,1730725903209,-250.0,0.00037808,2]
[341249574,1730725903219,-500.0,0.00037808,2]
[341249575,1730725903230,-500.0,0.00037808,2]
[341249576,1730725903240,-500.0,0.00037808,2]
[341249577,1730725903249,-1674.02,0.00037808,120]
[341249578,1730725903259,-500.0,0.00037808,2]
[341249579,1730725903268,-500.0,0.00037808,2]
[341249580,1730725903278,-500.0,0.00037808,2]
[341249581,1730725903287,-500.0,0.00037808,2]
[341249582,1730725903297,-500.0,0.00037808,2]
[341249583,1730725903306,-3101.46,0.00037808,2]
[341249584,1730725903315,-500.0,0.00037808,2]
[341249585,1730725903324,-809.09,0.00037808,2]
[341249586,1730725903334,-447.09209174,0.00037808,2]
[341249587,1730725903343,-500.0,0.00037808,2]
[341249588,1730725903354,-188.35879649,0.00037808,2]
[341249589,1730725903363,-500.0,0.00037808,2]
[341249590,1730725903373,-620.71,0.00037808,2]
[341249591,1730725903382,-500.0,0.00037808,2]
[341249592,1730725903391,-500.0,0.00037808,2]
[341249593,1730725903401,-1809.12,0.00037808,2]
[341249594,1730725903410,-500.0,0.00037808,2]
[341249595,1730725903420,-500.0,0.00037808,2]
[341249596,1730725903430,-500.0,0.00037808,2]
[341249597,1730725903439,-500.0,0.00037808,2]
[341249598,1730725903449,-500.0,0.00037808,2]
[341249599,1730725903460,-500.0,0.00037808,2]
[341249600,1730725903469,-500.0,0.00037808,2]
[341249601,1730725903481,-601.59,0.00037808,2]
[341249602,1730725903491,-500.0,0.00037808,2]
[341249603,1730725903500,-500.0,0.00037808,2]
[341249604,1730725903511,-500.0,0.00037808,2]
[341249605,1730725903522,-500.0,0.00037808,2]
[341249606,1730725903531,-500.0,0.00037808,2]
[341249607,1730725903541,-500.0,0.00037808,2]
[341249608,1730725903550,-500.0,0.00037808,2]
[341249609,1730725903561,-608.86743276,0.00037808,2]
[341249610,1730725903571,-500.0,0.00037808,2]
[341249611,1730725903581,-1995.05,0.00037808,2]
[341249612,1730725903591,-1008.77,0.00037808,2]
[341249613,1730725903600,-500.0,0.00037808,2]
[341249614,1730725903609,-500.0,0.00037808,2]
[341249615,1730725903619,-623.02,0.00037808,2]
[341249616,1730725903629,-203.54962947,0.00037808,2]
[341249617,1730725903639,-500.0,0.00037808,2]
[341249618,1730725903649,-500.0,0.00037808,2]
[341249619,1730725903658,-500.0,0.00037808,2]
[341249620,1730725903667,-500.0,0.00037808,2]
[341249621,1730725903677,-500.0,0.00037808,2]
[341249622,1730725903687,-500.0,0.00037808,2]
[341249623,1730725903697,-500.0,0.00037808,2]
[341249624,1730725903706,-500.0,0.00037808,2]
[341249625,1730725903716,-500.0,0.00037808,2]
[341249626,1730725903726,-157.18,0.00037808,2]
[341249627,1730725903737,-500.0,0.00037808,2]
[341249628,1730725903747,-1000.0,0.00037808,89]
[341249629,1730725903761,-500.0,0.00037808,2]
[341249630,1730725903771,-500.0,0.00037808,2]
[341249631,1730725903781,-1165.65,0.00037808,2]
[341249632,1730725903791,-500.0,0.00037808,2]
[341249633,1730725903802,-500.0,0.00037808,2]
[341249634,1730725903811,-500.0,0.00037808,2]
[341249635,1730725903821,-512.83,0.00037808,2]
[341249636,1730725903833,-500.0,0.00037808,2]
[341249637,1730725903843,-506.44723558,0.00037808,2]
[341249638,1730725903855,-1331.81,0.00037808,2]
[341249639,1730725903864,-972.11,0.00037808,2]
[341249640,1730725903874,-500.0,0.00037808,2]
[341249641,1730725903883,-500.0,0.00037808,2]
[341249642,1730725903892,-500.0,0.00037808,2]
[341249643,1730725903902,-500.0,0.00037808,2]
[341249644,1730725903912,-500.0,0.00037808,2]
[341249645,1730725903921,-500.0,0.00037808,2]
[341249646,1730725903932,-500.0,0.00037808,2]
[341249647,1730725903943,-500.0,0.00037808,2]
[341249648,1730725903952,-1002.08,0.00037808,2]
[341249649,1730725903962,-500.0,0.00037808,2]
[341249650,1730725903971,-500.0,0.00037808,2]
[341249651,1730725903980,-500.0,0.00037808,2]
[341249652,1730725903990,-500.0,0.00037808,2]
[341249653,1730725903999,-500.0,0.00037808,2]
[341249654,1730725904009,-500.0,0.00037808,2]
[341249655,1730725904019,-500.0,0.00037808,2]
[341249656,1730725904030,-1341.72,0.00037808,2]
[341249657,1730725904040,-500.0,0.00037808,2]
[341249658,1730725904049,-1042.98,0.00037808,2]
[341249659,1730725904059,-231.84052488,0.00037808,2]
[341249660,1730725904068,-500.0,0.00037808,2]
[341249661,1730725904078,-1342.69,0.00037808,2]
[341249662,1730725904087,-7421.53,0.00037808,2]
[341249663,1730725904098,-566.5230416,0.00037808,2]
[341249664,1730725904108,-3370.41,0.00037808,2]
[341249665,1730725904117,-500.0,0.00037808,2]
[341249666,1730725904126,-624.26,0.00037808,2]
[341249667,1730725904136,-707.91,0.00037808,2]
[341249668,1730725904145,-10707.45,0.00037808,2]
[341249669,1730725904154,-500.0,0.00037808,2]
[341249670,1730725904164,-500.0,0.00037808,2]
[341249671,1730725904174,-528.96,0.00037808,2]
[341249672,1730725904183,-500.0,0.00037808,2]
[341249673,1730725904194,-831.55,0.00037808,2]
[341249674,1730725904204,-500.0,0.00037808,2]
[341249675,1730725904215,-1217.0,0.00037808,2]
[341249676,1730725904226,-2695.19,0.00037808,2]
[341249677,1730725904237,-500.0,0.00037808,2]
[341249678,1730725904249,-500.0,0.00037808,2]
[341249679,1730725904260,-500.0,0.00037808,2]
[341249680,1730725904269,-575.84,0.00037808,2]
[341249681,1730725904279,-3535.86,0.00037808,2]
[341249682,1730725904288,-646.31,0.00037808,2]
[341249683,1730725904298,-540.81,0.00037808,2]
[341249684,1730725904307,-830.33,0.00037808,2]
[341249685,1730725904317,-500.0,0.00037808,2]
[341249686,1730725904327,-500.0,0.00037808,2]
[341249687,1730725904336,-845.84,0.00037808,2]
[341249688,1730725904347,-2000.0,0.00037808,2]
[341249689,1730725904360,-918.13,0.00037808,2]
[341249690,1730725904370,-500.0,0.00037808,2]
[341249691,1730725904380,-1204.33,0.00037808,2]
[341249692,1730725904389,-500.0,0.00037808,2]
[341249693,1730725904399,-749.48,0.00037808,2]
[341249694,1730725904409,-500.0,0.00037808,2]
[341249695,1730725904418,-1387.35,0.00037808,2]
[341249696,1730725904428,-1564.21,0.00037808,2]
[341249697,1730725904438,-806.53,0.00037808,2]
[341249698,1730725904449,-500.0,0.00037808,2]
[341249699,1730725904459,-5168.13,0.00037808,2]
[341249700,1730725904468,-10163.36,0.00037808,2]
[341249701,1730725904479,-2866.16,0.00037808,2]
[341249702,1730725904489,-500.0,0.00037808,2]
[341249703,1730725904500,-691.73,0.00037808,2]
[341249704,1730725904509,-1019.92,0.00037808,2]
[341249705,1730725904519,-500.0,0.00037808,2]
[341249706,1730725904529,-5461.87,0.00037808,2]
[341249707,1730725904539,-500.0,0.00037808,2]
[341249708,1730725904548,-500.0,0.00037808,2]
[341249709,1730725904558,-10956.67,0.00037808,2]
[341249710,1730725904568,-1965.9,0.00037808,2]
[341249711,1730725904577,-500.0,0.00037808,2]
[341249712,1730725904587,-1761.84,0.00037808,2]
[341249713,1730725904598,-1595.14,0.00037808,2]
[341249714,1730725904608,-500.0,0.00037808,2]
[341249715,1730725904617,-568.68,0.00037808,2]
[341249716,1730725904627,-500.0,0.00037808,2]
[341249717,1730725904637,-500.0,0.00037808,2]
[341249718,1730725904647,-500.0,0.00037808,2]
[341249719,1730725904656,-10530.0,0.00037808,2]
[341249720,1730725904666,-500.0,0.00037808,2]
[341249721,1730725904676,-1163.57,0.00037808,2]
[341249722,1730725904686,-1268.02,0.00037808,2]
[341249723,1730725904695,-500.0,0.00037808,2]
[341249724,1730725904705,-529.02,0.00037808,2]
[341249725,1730725904714,-1038.33,0.00037808,2]
[341249726,1730725904724,-500.0,0.00037808,2]
[341249727,1730725904734,-2034.7,0.00037808,2]
[341249728,1730725904744,-500.0,0.00037808,2]
[341249729,1730725904754,-755.3,0.00037808,2]
[341249730,1730725904768,-1475.39,0.00037808,2]
[341249731,1730725904777,-500.0,0.00037808,2]
[341249732,1730725904787,-500.0,0.00037808,2]
[341249733,1730725904798,-901.25,0.00037808,2]
[341249734,1730725904808,-4571.88,0.00037808,2]
[341249735,1730725904817,-500.0,0.00037808,2]
[341249736,1730725904826,-5855.7,0.00037808,2]
[341249737,1730725904837,-1827.95,0.00037808,2]
[341249738,1730725904847,-780.78,0.00037808,2]
[341249739,1730725904857,-500.0,0.00037808,2]
[341249740,1730725904866,-541.5,0.00037808,2]
[341249741,1730725904876,-500.0,0.00037808,2]
[341249742,1730725904886,-500.0,0.00037808,2]
[341249743,1730725904895,-500.0,0.00037808,2]
[341249744,1730725904905,-500.0,0.00037808,2]
[341249745,1730725904915,-1576.72,0.00037808,2]
[341249746,1730725904924,-500.0,0.00037808,2]
[341249747,1730725904934,-976.95,0.00037808,2]
[341249748,1730725904943,-500.0,0.00037808,2]
[341249749,1730725904952,-3971.77,0.00037808,2]
[341249750,1730725904962,-500.0,0.00037808,2]
[341249751,1730725904971,-500.0,0.00037808,2]
[341249752,1730725904981,-500.0,0.00037808,2]
[341249753,1730725904990,-500.0,0.00037808,2]
[341249754,1730725905000,-500.0,0.00037808,2]
[341249755,1730725905009,-227.26,0.00037808,2]
[341249756,1730725905019,-8670.42192342,0.00037833,15]
[341249757,1730725905028,-26251.79354898,0.000379,2]
[341249758,1730725905038,-152.41,0.000379,31]
[341249759,1730725905048,-152.41,0.000379,31]
[341249760,1730725905058,-152.41,0.000379,31]
[341249761,1730725905067,-152.41,0.000379,31]
[341249762,1730725905077,-152.41,0.000379,31]
[341249763,1730725905087,-152.41,0.000379,31]
[341249764,1730725905099,-152.41,0.000379,31]
[341249765,1730725905109,-152.41,0.000379,31]
[341249766,1730725905118,-152.41,0.000379,31]
[341249767,1730725905128,-152.41,0.000379,31]
[341249768,1730725905137,-152.41,0.000379,31]
[341249769,1730725905147,-152.41,0.000379,31]
[341249770,1730725905156,-152.41,0.000379,31]
[341249771,1730725905166,-152.41,0.000379,31]
[341249772,1730725905176,-200.0,0.000379,13]
[341249773,1730725905186,-5392.0,0.00037909,2]
[341249774,1730725905195,-8088.0,0.00037929,2]
[341249775,1730725905205,-800.0,0.00037933,60]
[341249776,1730725905215,-152.0,0.00037935,5]
[341249777,1730725905224,-13885.0,0.00037965,2]
[341249778,1730725905234,-697.83,0.00038,2]
[341249779,1730725905243,-10377.46199615,0.00038,10]
[341249780,1730725905254,-1657.03903305,0.00038,120]
[341249781,1730725905264,-500.0,0.00038082,2]
[341249782,1730725905273,-500.0,0.00038082,2]
[341249783,1730725905283,-580.29,0.00038082,2]
[341249784,1730725905293,-500.0,0.00038082,2]
[341249785,1730725905303,-500.0,0.00038082,2]
[341249786,1730725905312,-1598.15,0.00038082,2]
[341249787,1730725905322,-956.54,0.00038082,7]
[341249788,1730725905332,-570.89,0.00038082,2]
[341249789,1730725905341,-1552.92,0.00038082,2]
[341249790,1730725905352,-500.0,0.00038082,2]
[341249791,1730725905361,-767.02,0.00038082,2]
[341249792,1730725905371,-500.0,0.00038082,2]
[341249793,1730725905500,-641.15227583,0.00038082,2]
[341249794,1730725905515,-500.0,0.00038082,2]
[341249795,1730725905524,-530.64,0.00038082,2]
[341249796,1730725905534,-300.60909724,0.00038082,2]
[341249797,1730725905545,-500.0,0.00038082,2]
[341249798,1730725905554,-500.0,0.00038082,2]
[341249799,1730725905563,-500.0,0.00038082,2]
[341249800,1730725905572,-1163.84,0.00038082,2]
[341249801,1730725905582,-500.0,0.00038082,2]
[341249802,1730725905591,-500.0,0.00038082,2]
[341249803,1730725905601,-500.0,0.00038082,2]
[341249804,1730725905611,-500.0,0.00038082,2]
[341249805,1730725905620,-500.0,0.00038082,2]
[341249806,1730725905630,-614.39,0.00038082,2]
[341249807,1730725905639,-641.85,0.00038082,2]
[341249808,1730725905648,-221.35426506,0.00038082,2]
[341249809,1730725905658,-500.0,0.00038082,2]
[341249810,1730725905667,-500.0,0.00038082,2]
[341249811,1730725905676,-750.25,0.00038082,2]
[341249812,1730725905686,-500.0,0.00038082,2]
[341249813,1730725905695,-1037.16,0.00038082,2]
[341249814,1730725905705,-500.0,0.00038082,2]
[341249815,1730725905714,-538.4,0.00038082,2]
[341249816,1730725905724,-500.0,0.00038082,2]